{"text_format":"3","workbook":"xlsx","n_sheets":1,"sheets":["Sheet1"],"read":"whole","date_system":"1900"}

{"sheet":"Sheet1","index":0,"n_rows":20,"n_cols":7,"rows_kept":20,"merged":[[0,0,0,6],[2,0,2,6],[4,2,4,5],[10,2,14,5]]}
["Annexure B: WEBSITE HOSTING, SUPPORT AND MAINTENANCE PRICING"]
[]
["Website Hosting including Support and Maintenance for a Period of Five Years"]
[null,"Year 1","Year 2","Year 3","Year 4","Year 5","Total"]
["Website Migration (Once-off)",null,"Data migration is applicable only in Year 1.",{"$nulls":3},{"$f":"SUM(B5:F5)","v":0}]
["Website Hosting",{"$nulls":5},{"$f":"SUM(B6:F6)","v":0}]
["Website Security",{"$nulls":5},{"$f":"SUM(B7:F7)","v":0}]
["Website Support and Maintenance",{"$nulls":5},0]
["Licensing of Website Components",{"$nulls":5},0]
["Website Analytics and Reporting",{"$nulls":5},0]
["Development (Once-off):",null,"The development is only applicable in Year 1 and must be completed and signed off.",{"$nulls":3},0]
["RFQ and RFI Sections ",{"$nulls":5},0]
["Selfhelp Portal",{"$nulls":5},0]
["Legal Aid Application Form",{"$nulls":5},0]
["Advanced Chatbot Functionality",{"$nulls":5},0]
["Other Costs:",{"$nulls":5},{"$f":"SUM(B16:F16)","v":0}]
["1.",{"$nulls":5},0]
["2.",{"$nulls":5},0]
["3.",{"$nulls":5},0]
["Total",{"$f":"SUM(B5:B19)","v":0},{"$f":"SUM(C5:C19)","v":0},0,0,0,{"$f":"SUM(G5:G19)","v":0}]